bitfinex/quotes_BTCUSD_20250105
["timestamp","ask_amount","ask_price","bid_price","bid_amount"]
[1736103781472,1.0540761,97957.0,97956.0,0.08320001]
[1736103782199,1.27157864,97957.0,97956.0,0.08320001]
[1736103782537,1.28057864,97957.0,97956.0,0.08320001]
[1736103782738,1.27157864,97957.0,97956.0,0.08320001]
[1736103783144,1.28057864,97957.0,97956.0,0.08320001]
[1736103783584,1.28457864,97957.0,97956.0,0.08320001]
[1736103784146,1.0550761,97957.0,97956.0,0.08320001]
[1736103785715,1.23863572,97957.0,97956.0,0.08320001]
[1736103786780,1.0550761,97957.0,97956.0,0.08320001]
[1736103789265,1.23863572,97957.0,97956.0,0.08320001]
[1736103790220,1.0550761,97957.0,97956.0,0.08320001]
[1736103791600,1.19269657,97957.0,97956.0,0.08320001]
[1736103795763,1.19269657,97957.0,97956.0,0.08316001]
[1736103796939,1.0550761,97957.0,97956.0,0.08316001]
[1736103798118,1.14680361,97957.0,97956.0,0.08316001]
[1736103799067,1.0550761,97957.0,97956.0,0.08316001]
[1736103801766,1.0460761,97957.0,97956.0,0.08316001]
[1736103801989,1.0420761,97957.0,97956.0,0.08316001]
[1736103802193,1.0510761,97957.0,97956.0,0.08316001]
[1736103802422,1.0550761,97957.0,97956.0,0.08316001]
[1736103802820,1.19269657,97957.0,97956.0,0.08316001]
[1736103803112,1.18869657,97957.0,97956.0,0.08316001]
[1736103803311,1.19269657,97957.0,97956.0,0.08316001]
[1736103803501,1.18369657,97957.0,97956.0,0.08316001]
[1736103803700,1.17969657,97957.0,97956.0,0.08316001]
[1736103804242,1.18369657,97957.0,97956.0,0.08316001]
[1736103804597,1.18369657,97957.0,97956.0,0.08333081]
[1736103805015,1.19269657,97957.0,97956.0,0.08333081]
[1736103805216,1.18369657,97957.0,97956.0,0.08333081]
[1736103805652,1.19269657,97957.0,97956.0,0.08333081]
[1736103805863,1.17969657,97957.0,97956.0,0.08333081]
[1736103806312,1.19269657,97957.0,97956.0,0.08333081]
[1736103806516,1.0460761,97957.0,97956.0,0.08333081]
[1736103806685,1.0420761,97957.0,97956.0,0.08333081]
[1736103806903,1.0510761,97957.0,97956.0,0.08333081]
[1736103807084,1.0540761,97957.0,97956.0,0.08333081]
[1736103808063,1.0450761,97957.0,97956.0,0.08333081]
[1736103808399,1.0540761,97957.0,97956.0,0.08333081]
[1736103808808,1.0450761,97957.0,97956.0,0.08333081]
[1736103809163,1.0540761,97957.0,97956.0,0.08333081]
[1736103809382,1.19169657,97957.0,97956.0,0.08333081]
[1736103809607,1.18869657,97957.0,97956.0,0.08333081]
[1736103809818,1.19169657,97957.0,97956.0,0.08333081]
[1736103811061,1.19169657,97957.0,97956.0,0.0001708]
[1736103813018,1.0540761,97957.0,97956.0,0.0001708]
[1736103815661,1.23763572,97957.0,97956.0,0.0001708]
[1736103817441,1.0540761,97957.0,97956.0,0.0001708]
[1736103818386,1.28357864,97957.0,97956.0,0.0001708]
[1736103819487,1.0540761,97957.0,97956.0,0.0001708]
[1736103857088,1.0540761,97957.0,97956.0,0.0001308]
[1736103862384,1.0532761,97957.0,97956.0,0.0001308]
[1736103880822,0.84928978,97957.0,97956.0,0.0001308]
[1736103883051,1.07914546,97957.0,97956.0,0.0001308]
[1736103884252,0.84928978,97957.0,97956.0,0.0001308]
[1736103888313,1.0791251,97957.0,97956.0,0.0001308]
[1736103897365,0.84928978,97957.0,97956.0,0.0001308]
[1736103898412,1.03314745,97957.0,97956.0,0.0001308]
[1736103899804,0.84928978,97957.0,97956.0,0.0001308]
[1736103905953,1.0791251,97957.0,97956.0,0.0001308]
[1736103910928,0.84928978,97957.0,97956.0,0.0001308]
[1736103911816,1.0791251,97957.0,97956.0,0.0001308]
[1736103916175,0.7461711,97957.0,97956.0,0.1265308]
[1736103916382,0.7461711,97957.0,97956.0,0.12704123]
[1736103916998,0.7461711,97957.0,97956.0,0.23102755]
[1736103917215,0.7431711,97957.0,97956.0,0.23102755]
[1736103917607,0.7441711,97957.0,97956.0,0.23102755]
[1736103917810,0.7351711,97957.0,97956.0,0.23102755]
[1736103917954,0.7391711,97957.0,97956.0,0.23102755]
[1736103918151,0.50933578,97957.0,97956.0,0.23202755]
[1736103918397,0.50433578,97957.0,97956.0,0.23202755]
[1736103918619,0.50433578,97957.0,97956.0,0.23302755]
[1736103920168,0.50433578,97957.0,97956.0,0.23202755]
[1736103920302,0.50433578,97957.0,97956.0,0.23402755]
[1736103923750,0.50433578,97957.0,97956.0,0.25702755]
[1736103924799,0.42623578,97957.0,97956.0,0.50702755]
[1736103925007,0.42623578,97957.0,97956.0,0.60602755]
[1736103925211,0.42623578,97957.0,97956.0,0.60402755]
[1736103925434,0.42623578,97957.0,97956.0,0.60502755]
[1736103925860,0.42623578,97957.0,97956.0,1.07881347]
[1736103926064,0.42623578,97957.0,97956.0,1.07781347]
[1736103926489,0.42723578,97957.0,97956.0,1.07881347]
[1736103926698,0.42723578,97957.0,97956.0,1.08081347]
[1736103926874,0.42723578,97957.0,97956.0,0.7441107]
[1736103927079,0.42723578,97957.0,97956.0,0.7421107]
[1736103927477,0.42723578,97957.0,97956.0,0.7461107]
[1736103927890,0.42723578,97957.0,97956.0,0.70014106]
[1736103929531,0.42361123,97957.0,97956.0,0.70014106]
[1736103929747,0.42723809,97957.0,97956.0,0.70014106]
[1736103930392,0.42723809,97957.0,97956.0,0.60902755]
[1736103936372,0.42723809,97957.0,97956.0,0.61590755]
[1736103936978,0.42723809,97957.0,97956.0,0.60902755]
[1736103937175,0.42723809,97957.0,97956.0,0.61590755]
[1736103937968,0.30591784,97957.0,97956.0,0.61590755]
[1736103938314,0.30305409,97957.0,97956.0,0.61590755]
[1736103938661,6.7e-07,97962.0,97961.0,0.38425643]
[1736103938875,6.7e-07,97962.0,97961.0,0.78784275]
[1736103940095,6.7e-07,97962.0,97961.0,0.79184275]
[1736103940709,6.7e-07,97962.0,97961.0,0.88295626]
[1736103941148,0.05,97997.0,97976.0,0.33282843]
[1736103941340,0.00013467,97977.0,97976.0,0.44369475]
[1736103942309,0.00013467,97977.0,97976.0,0.44469475]
[1736103942763,0.00013467,97977.0,97976.0,0.44569475]
[1736103945566,0.00013467,97977.0,97976.0,0.45569818]
[1736103946148,0.00013467,97977.0,97976.0,0.45469818]
[1736103946559,0.00013467,97977.0,97976.0,0.45569818]
[1736103946937,0.00013467,97977.0,97976.0,0.45869818]
[1736103948095,0.00013467,97977.0,97976.0,0.47951683]
[1736103954292,0.00013467,97977.0,97976.0,0.86119521]
[1736103957528,0.05,97997.0,97996.0,0.18419043]
[1736103957757,0.05004927,97997.0,97996.0,0.29505675]
[1736103958582,0.05104927,97997.0,97996.0,0.29505675]
[1736103959307,0.05604927,97997.0,97996.0,0.29505675]
[1736103960309,0.05504927,97997.0,97996.0,0.3157271]
[1736103960510,0.05004927,97997.0,97996.0,0.3157271]
[1736103960747,0.05004927,97997.0,97996.0,0.3167271]
[1736103960748,0.05104927,97997.0,97996.0,0.3167271]
[1736103961139,0.05004927,97997.0,97996.0,0.3167271]
[1736103961642,0.05004927,97997.0,97996.0,0.3177271]
[1736103962366,0.05004927,97997.0,97996.0,0.3407271]
[1736103962783,0.05004927,97997.0,97996.0,0.5189271]
[1736103963396,0.05004927,97997.0,97996.0,0.7689271]
[1736103963611,0.05004927,97997.0,97996.0,0.80060625]
[1736103964234,0.05004927,97997.0,97996.0,0.79960625]
[1736103964372,0.05004927,97997.0,97996.0,0.80260625]
[1736103965181,0.05004927,97997.0,97996.0,1.13795132]
[1736103965576,0.05104927,97997.0,97996.0,1.14295132]
[1736103966960,0.05113467,97997.0,97996.0,1.14295132]
[1736103967343,0.05113467,97997.0,97996.0,1.3251204]
[1736103967949,0.05113467,97997.0,97996.0,1.33535149]
[1736103968153,0.05113467,97997.0,97996.0,1.44295149]
[1736103968783,0.05113467,97997.0,97996.0,1.48935149]
[1736103973068,0.05113467,97997.0,97996.0,1.30718241]
[1736103973790,0.079448,98026.0,98021.0,0.18414443]
[1736103973988,0.00019103,98022.0,98021.0,0.29501075]
[1736103974193,0.00385522,98022.0,98021.0,0.29501075]
[1736103974457,0.00019103,98022.0,98021.0,0.29501075]
[1736103975288,0.00519103,98022.0,98021.0,0.29601075]
[1736103976144,0.00619103,98022.0,98021.0,0.29601075]
[1736103977565,0.00619103,98022.0,98021.0,0.31901075]
[1736103978585,0.00119103,98022.0,98021.0,0.31801075]
[1736103978765,0.00019103,98022.0,98021.0,0.32201075]
[1736103978966,0.00019103,98022.0,98021.0,0.42201075]
[1736103979207,0.00019103,98022.0,98021.0,0.42401075]
[1736103979571,0.00019103,98022.0,98021.0,0.43413895]
[1736103979781,0.00019103,98022.0,98021.0,0.46618998]
[1736103979980,0.00019103,98022.0,98021.0,0.63653867]
[1736103980175,0.00019103,98022.0,98021.0,0.73653867]
[1736103981160,3e-08,98026.0,98025.0,0.44871043]
[1736103981362,3e-08,98026.0,98025.0,0.55269675]
[1736103981549,3e-08,98026.0,98025.0,0.55957675]
[1736103981892,3e-08,98026.0,98025.0,0.59114457]
[1736103982095,3e-08,98026.0,98025.0,0.55957675]
[1736103982297,0.00100003,98026.0,98025.0,0.56757675]
[1736103982945,0.00100003,98026.0,98025.0,0.57157675]
[1736103984640,0.00100003,98026.0,98025.0,0.60311788]
[1736103984838,0.0004,98039.0,98038.0,0.43411243]
[1736103985056,0.0004,98039.0,98038.0,0.51109875]
[1736103985730,0.0004,98039.0,98038.0,0.61109875]
[1736103985936,0.0004,98039.0,98038.0,0.73489875]
[1736103986747,0.0004,98039.0,98038.0,0.73589875]
[1736103986971,0.0004,98039.0,98038.0,0.73989875]
[1736103988413,0.0004,98039.0,98038.0,0.73589875]
[1736103988864,0.0014,98039.0,98038.0,0.752024]
[1736103989376,0.00092885,98039.0,98038.0,0.752024]
[1736103989581,0.00092885,98039.0,98038.0,0.77225859]
[1736103991090,0.00092885,98039.0,98038.0,0.60145859]
[1736103991297,0.00092885,98039.0,98038.0,0.60833859]
[1736103991620,0.00092885,98039.0,98038.0,0.60145859]
[1736103991824,0.00092885,98039.0,98038.0,0.60540384]
[1736103992446,0.00092885,98039.0,98038.0,0.50540384]
[1736103992800,0.00092885,98039.0,98038.0,0.60540384]
[1736103994037,0.00092885,98039.0,98038.0,0.59852384]
[1736103994263,0.00092885,98039.0,98038.0,0.60540384]
[1736103995335,0.00092885,98039.0,98038.0,0.58240384]
[1736103995545,0.00092885,98039.0,98038.0,0.60540384]
[1736103997234,0.00092885,98039.0,98038.0,0.47552384]
[1736103997446,0.08132885,98039.0,98038.0,0.295164]
[1736103997657,0.08132885,98039.0,98038.0,0.302044]
[1736103998302,0.08132885,98039.0,98038.0,0.298044]
[1736103998519,0.08132885,98039.0,98038.0,0.300044]
[1736103998742,0.0804,98039.0,98038.0,0.294044]
[1736103998950,0.0814,98039.0,98038.0,0.294044]
[1736103999154,0.0804,98039.0,98038.0,0.292044]
[1736103999336,0.0804,98039.0,98038.0,0.293044]
[1736104000633,0.0804,98039.0,98038.0,0.292044]
[1736104000983,0.0804,98039.0,98038.0,0.294044]
[1736104001191,0.0804,98039.0,98038.0,0.295044]
[1736104002013,0.0804,98039.0,98038.0,0.294044]
[1736104002233,0.0804,98039.0,98038.0,0.295044]
[1736104003516,0.0804,98039.0,98038.0,0.294044]
[1736104003914,0.0804,98039.0,98038.0,0.2932146]
[1736104004109,0.0804853,98039.0,98038.0,0.2952146]
[1736104009457,0.0804853,98039.0,98038.0,0.2952946]
[1736104009872,8.53e-05,98039.0,98038.0,0.3182946]
[1736104017931,8.53e-05,98039.0,98038.0,0.5682946]
[1736104018294,8.53e-05,98039.0,98038.0,0.67763391]
[1736104019186,8.53e-05,98039.0,98038.0,1.01367431]
[1736104019389,8.53e-05,98039.0,98038.0,1.01267431]
[1736104019806,8.53e-05,98039.0,98038.0,1.01367431]
[1736104020005,0.0010853,98039.0,98038.0,1.01967431]
[1736104020229,0.0010853,98039.0,98038.0,1.19878402]
[1736104020841,0.0010853,98039.0,98038.0,1.16714471]
[1736104021040,0.0010853,98039.0,98038.0,1.17014471]
[1736104021255,0.0010853,98039.0,98038.0,1.20178041]
[1736104021516,0.0010853,98039.0,98038.0,1.0196707]
[1736104022854,0.0010853,98039.0,98038.0,1.20178041]
[1736104023915,0.0010853,98039.0,98038.0,1.0196707]
[1736104025782,0.0010853,98039.0,98038.0,0.9419707]
[1736104026205,0.0010853,98039.0,98038.0,1.17044261]
[1736104028832,0.0010853,98039.0,98038.0,1.16348261]
[1736104029029,0.0010853,98039.0,98038.0,1.14048261]
[1736104029263,0.0010853,98039.0,98038.0,0.85884691]
[1736104029418,0.0764853,98039.0,98038.0,0.86580691]
[1736104030226,0.0764853,98039.0,98038.0,0.85680691]
[1736104030450,0.0754853,98039.0,98038.0,0.2853346]
[1736104030648,0.0754853,98039.0,98038.0,0.2922946]
[1736104030871,0.0754853,98039.0,98038.0,0.2972946]
[1736104031090,0.0754853,98039.0,98038.0,0.2922946]
[1736104031719,0.0754853,98039.0,98038.0,0.2952946]
[1736104032175,0.0754853,98039.0,98038.0,0.2922546]
[1736104032389,0.0754853,98039.0,98038.0,0.2962546]
[1736104032717,0.0754853,98039.0,98038.0,0.2982546]
[1736104033009,0.0754853,98039.0,98038.0,0.2922546]
[1736104033219,0.0754853,98039.0,98038.0,0.2952546]
[1736104033372,0.0754853,98039.0,98038.0,0.2932546]
[1736104033581,0.0754853,98039.0,98038.0,0.2962546]
[1736104035311,0.0754853,98039.0,98038.0,0.2952546]
[1736104035512,0.0754853,98039.0,98038.0,0.2972546]
[1736104036929,8.53e-05,98039.0,98038.0,0.2972546]
[1736104038390,8.53e-05,98039.0,98038.0,0.3202546]
[1736104038597,8.53e-05,98039.0,98038.0,0.35191132]
[1736104038774,8.53e-05,98039.0,98038.0,0.3202546]
[1736104039173,8.53e-05,98039.0,98038.0,0.35190972]
[1736104039579,8.53e-05,98039.0,98038.0,0.83913133]
[1736104039756,8.53e-05,98039.0,98038.0,0.8707891]
[1736104039952,8.53e-05,98039.0,98038.0,0.83913133]
[1736104040861,8.53e-05,98039.0,98038.0,0.65679363]
[1736104041896,8.53e-05,98039.0,98038.0,0.68845511]
[1736104043778,8.53e-05,98039.0,98038.0,0.87079665]
[1736104046409,8.53e-05,98039.0,98038.0,1.02079665]
[1736104047354,8.53e-05,98039.0,98038.0,1.12079665]
[1736104047557,8.53e-05,98039.0,98038.0,1.11387665]
[1736104047823,8.53e-05,98039.0,98038.0,0.93845511]
[1736104050078,8.53e-05,98039.0,98038.0,0.98845511]
[1736104053790,8.53e-05,98039.0,98038.0,0.98645511]
[1736104054000,8.53e-05,98039.0,98038.0,0.98641511]
[1736104054394,0.0010853,98039.0,98038.0,0.99241511]
[1736104054662,0.0010853,98039.0,98038.0,1.26658141]
[1736104055234,0.00098497,98039.0,98038.0,1.26658141]
[1736104055432,0.00098497,98039.0,98038.0,1.27689681]
[1736104055815,0.00098497,98039.0,98038.0,1.00273051]
[1736104057280,0.00098497,98039.0,98038.0,1.27689681]
[1736104059570,0.00098497,98039.0,98038.0,1.00273051]
[1736104060432,0.00098497,98039.0,98038.0,0.95273051]
[1736104063168,0.00098497,98039.0,98038.0,0.95269051]
[1736104063732,0.00098497,98039.0,98038.0,0.91414903]
[1736104063939,0.00107037,98039.0,98038.0,1.1490544]
[1736104064137,0.00107037,98039.0,98038.0,1.18072358]
[1736104064987,0.00107037,98039.0,98038.0,1.17384358]
[1736104065189,0.00107037,98039.0,98038.0,1.18072358]
[1736104067726,0.00107037,98039.0,98038.0,0.95269821]
[1736104072682,0.00107037,98039.0,98038.0,0.85269821]
[1736104084561,0.00107037,98039.0,98038.0,1.12686451]
[1736104091587,0.00107037,98039.0,98038.0,0.85269821]
[1736104102505,0.00107037,98039.0,98038.0,1.12686451]
[1736104105285,0.00107037,98039.0,98038.0,0.85269821]
[1736104114505,0.00107037,98039.0,98038.0,0.85265821]
[1736104117210,0.00107037,98039.0,98038.0,0.82277821]
[1736104117417,0.08207037,98039.0,98038.0,0.82965821]
[1736104123867,0.00107037,98039.0,98038.0,0.82965821]
[1736104126314,0.00107037,98039.0,98038.0,1.10377769]
[1736104130181,0.00107037,98039.0,98038.0,0.82965821]
[1736104137011,0.00107037,98039.0,98038.0,1.10377769]
[1736104137960,0.00107037,98039.0,98038.0,0.82965821]
[1736104140437,0.00107037,98039.0,98038.0,1.10341006]
[1736104141791,0.00107037,98039.0,98038.0,0.82277821]
[1736104142033,0.00107037,98039.0,98038.0,0.82965821]
[1736104159764,0.00107037,98039.0,98038.0,0.85265821]
[1736104160957,0.00083303,98039.0,98038.0,0.85265821]
[1736104162694,8.54e-05,98049.0,98048.0,0.183583]
[1736104162891,8.54e-05,98049.0,98048.0,0.3192385]
[1736104163890,8.54e-05,98049.0,98048.0,0.3202385]
[1736104164096,8.54e-05,98049.0,98048.0,0.3222385]
[1736104164294,8.54e-05,98049.0,98048.0,0.3291185]
[1736104164908,8.54e-05,98049.0,98048.0,0.66565753]
[1736104167153,0.0803854,98049.0,98048.0,0.63398835]
[1736104167295,0.0803854,98049.0,98048.0,0.6543115]
[1736104168677,0.0803854,98049.0,98048.0,0.6474315]
[1736104168982,0.0803854,98049.0,98048.0,0.6543115]
[1736104170972,0.0803854,98049.0,98048.0,0.79117214]
[1736104172104,8.54e-05,98049.0,98048.0,0.79117214]
[1736104175206,8.54e-05,98049.0,98048.0,0.79113214]
[1736104177749,0.00013566,98049.0,98048.0,0.79113214]
[1736104177929,0.00013566,98049.0,98048.0,0.78425214]
[1736104178136,0.00013566,98049.0,98048.0,0.79113214]
[1736104179510,0.00013566,98049.0,98048.0,0.78425214]
[1736104179714,0.00013566,98049.0,98048.0,0.79113214]
[1736104180722,0.00013566,98049.0,98048.0,0.82281387]
[1736104180924,0.00013566,98049.0,98048.0,0.79113214]
[1736104181166,0.00013566,98049.0,98048.0,0.8228135]
[1736104182510,0.00013566,98049.0,98048.0,0.68595286]
[1736104187384,0.00013566,98049.0,98048.0,0.70895286]
[1736104190082,0.00013566,98049.0,98048.0,0.70207286]
[1736104190344,0.00013566,98049.0,98048.0,0.70895286]
[1736104192451,0.00013566,98049.0,98048.0,0.70207286]
[1736104192675,0.00013566,98049.0,98048.0,0.70895286]
[1736104197775,0.00013566,98049.0,98048.0,0.93702456]
[1736104199973,0.00013566,98049.0,98048.0,0.91402456]
[1736104200198,0.00013566,98049.0,98048.0,0.8823432]
[1736104200612,0.00013566,98049.0,98048.0,0.882514]
[1736104201207,0.00013566,98049.0,98048.0,0.875634]
[1736104201459,0.00013566,98049.0,98048.0,0.77164768]
[1736104201666,0.17303566,98049.0,98048.0,0.59498468]
[1736104201877,0.17303566,98049.0,98048.0,0.50384646]
[1736104202468,0.17303566,98049.0,98048.0,0.50284646]
[1736104202675,0.17303566,98049.0,98048.0,0.50384646]
[1736104203281,0.17303566,98049.0,98048.0,0.02937395]
[1736104203600,0.17677328,98049.0,98048.0,0.03037395]
[1736104204024,0.12677328,98049.0,98048.0,0.02737395]
[1736104204194,0.17677328,98049.0,98048.0,0.02737395]
[1736104204396,0.17677328,98049.0,98048.0,0.02249395]
[1736104204596,0.17677328,98049.0,98048.0,0.02737395]
[1736104204807,0.12677328,98049.0,98048.0,0.02737395]
[1736104205644,0.07987328,98049.0,98048.0,0.02737395]
[1736104206212,0.12987328,98049.0,98048.0,0.02737395]
[1736104206442,0.07987328,98049.0,98048.0,0.02737395]
[1736104206707,0.12987328,98049.0,98048.0,0.02737395]
[1736104212151,0.17517328,98049.0,98048.0,0.0001708]
[1736104213342,0.21105665,98049.0,98048.0,0.0001708]
[1736104213745,0.17717328,98049.0,98048.0,0.0001708]
[1736104213948,0.17517328,98049.0,98048.0,0.0001708]
[1736104214331,0.17717328,98049.0,98048.0,0.0001708]
[1736104215079,0.17517328,98049.0,98048.0,0.0001708]
[1736104215430,0.17717328,98049.0,98048.0,0.0001708]
[1736104216241,0.17817328,98049.0,98048.0,0.0001708]
[1736104216496,0.17817328,98049.0,98048.0,0.0070508]
[1736104216650,0.17517328,98049.0,98048.0,0.0070508]
[1736104216853,0.17717328,98049.0,98048.0,0.0070508]
[1736104217646,0.13187328,98049.0,98048.0,0.0070508]
[1736104218091,0.00587328,98049.0,98048.0,0.0070508]
[1736104218540,0.00213566,98049.0,98048.0,0.0070508]
[1736104219827,0.00013566,98049.0,98048.0,0.0070508]
[1736104223517,0.00013566,98049.0,98048.0,0.11103712]
[1736104228546,0.00013566,98049.0,98048.0,0.10415712]
[1736104228737,0.00013566,98049.0,98048.0,0.11103712]
[1736104231301,0.00013566,98049.0,98048.0,0.12102011]
[1736104235940,0.00013566,98049.0,98048.0,0.12098011]
[1736104236147,0.00013566,98049.0,98048.0,0.11099712]
[1736104249479,0.00013566,98049.0,98048.0,0.13399712]
[1736104249714,0.00013566,98049.0,98048.0,0.14400171]
[1736104249913,0.00013566,98049.0,98048.0,0.22440171]
[1736104250046,0.00013566,98049.0,98048.0,0.31560635]
[1736104250890,0.00013566,98049.0,98048.0,0.22440171]
[1736104251105,0.00013566,98049.0,98048.0,0.36133519]
[1736104251959,0.00013566,98049.0,98048.0,0.51133519]
[1736104252704,0.00013566,98049.0,98048.0,0.51333519]
[1736104253037,0.00013566,98049.0,98048.0,0.51133519]
[1736104253505,0.00013566,98049.0,98048.0,0.51333519]
[1736104254459,0.00013566,98049.0,98048.0,0.51433519]
[1736104255929,0.00013566,98049.0,98048.0,0.5459978]
[1736104256159,0.00013566,98049.0,98048.0,0.45546432]
[1736104257631,0.00013566,98049.0,98048.0,0.79175692]
[1736104257936,8.54e-05,98055.0,98049.0,0.173]
[1736104258146,8.54e-05,98055.0,98054.0,0.206572]
[1736104258370,8.54e-05,98055.0,98054.0,0.34222093]
[1736104259030,8.54e-05,98055.0,98054.0,0.39222093]
[1736104259415,8.54e-05,98055.0,98054.0,0.39322093]
[1736104260270,8.54e-05,98055.0,98054.0,0.73051353]
[1736104260381,8.54e-05,98055.0,98054.0,0.80751353]
[1736104262576,8.54e-05,98055.0,98054.0,0.95751353]
[1736104262799,8.54e-05,98055.0,98054.0,1.1396763]
[1736104265345,0.01396574,98072.0,98071.0,0.18354]
[1736104265558,0.014021,98072.0,98071.0,0.31740632]
[1736104266621,0.016021,98072.0,98071.0,0.31740632]
[1736104266966,0.021021,98072.0,98071.0,0.31740632]
[1736104267168,0.019021,98072.0,98071.0,0.31740632]
[1736104267417,0.019021,98072.0,98071.0,0.33831718]
[1736104268181,0.014021,98072.0,98071.0,0.34867184]
[1736104268522,0.018021,98072.0,98071.0,0.34867184]
[1736104268761,0.014021,98072.0,98071.0,0.34867184]
[1736104268958,0.014021,98072.0,98071.0,0.34967184]
[1736104269159,0.016021,98072.0,98071.0,0.34967184]
[1736104269389,0.016021,98072.0,98071.0,0.34867184]
[1736104269567,0.014021,98072.0,98071.0,0.34967184]
[1736104269785,0.014021,98072.0,98071.0,0.35067184]
[1736104270106,0.014021,98072.0,98071.0,0.34967184]
[1736104270695,0.0141064,98072.0,98071.0,0.34967184]
[1736104272023,0.0141064,98072.0,98071.0,0.35067184]
[1736104272270,0.0141064,98072.0,98071.0,0.34967184]
[1736104272639,0.0141064,98072.0,98071.0,0.35067184]
[1736104283160,0.0141064,98072.0,98071.0,0.35084264]
[1736104289178,0.0141064,98072.0,98071.0,0.55084264]
[1736104289553,0.0141064,98072.0,98071.0,0.58257737]
[1736104290215,4e-07,98072.0,98071.0,0.58257737]
[1736104290417,4e-07,98072.0,98071.0,0.80537737]
[1736104291038,4e-07,98072.0,98071.0,0.80437737]
[1736104291218,4e-07,98072.0,98071.0,1.14039364]
[1736104291434,4e-07,98072.0,98071.0,1.14139364]
[1736104292198,4e-07,98072.0,98071.0,1.14039364]
[1736104292431,4e-07,98072.0,98071.0,1.14239364]
[1736104293190,0.0004,98079.0,98078.0,0.05]
[1736104293368,0.0004,98079.0,98078.0,0.54912805]
[1736104294468,0.1029,98089.0,98080.0,0.05]
[1736104294633,0.1029,98089.0,98088.0,0.183508]
[1736104294830,0.1029,98089.0,98088.0,0.31049432]
[1736104295445,0.1029,98089.0,98088.0,0.31745432]
[1736104295703,0.10294925,98089.0,98088.0,0.29445432]
[1736104295951,0.10394925,98089.0,98088.0,0.29445432]
[1736104296360,0.10694925,98089.0,98088.0,0.29445432]
[1736104296762,0.10694925,98089.0,98088.0,0.29441432]
[1736104297066,0.10894925,98089.0,98088.0,0.29441432]
[1736104297461,0.10994925,98089.0,98088.0,0.29441432]
[1736104297701,0.10994925,98089.0,98088.0,0.28745432]
[1736104297916,0.19164925,98089.0,98088.0,0.29441432]
[1736104298081,0.19264925,98089.0,98088.0,0.28745432]
[1736104298284,0.19264925,98089.0,98088.0,0.29441432]
[1736104298955,0.18664925,98089.0,98088.0,0.29441432]
[1736104299347,0.18964925,98089.0,98088.0,0.29441432]
[1736104303232,0.18964925,98089.0,98088.0,0.28745432]
[1736104303436,0.18964925,98089.0,98088.0,0.29441432]
[1736104304481,0.18964925,98089.0,98088.0,0.190428]
[1736104304691,0.23964925,98089.0,98088.0,0.00696]
[1736104305431,0.1305,98088.0,98085.0,0.183514]
[1736104305646,0.05,98085.0,98082.0,0.183518]
[1736104305851,0.05,98084.0,98083.0,0.00696]
[1736104306057,0.1305,98084.0,98083.0,0.00696]
[1736104307467,0.13425826,98084.0,98083.0,0.00696]
[1736104308404,0.13525826,98084.0,98083.0,0.00696]
[1736104309154,0.00375826,98084.0,98083.0,0.13394632]
[1736104309579,0.001,98084.0,98083.0,0.13394632]
[1736104309773,0.00375825,98084.0,98083.0,0.13394632]
[1736104310112,0.10303465,98089.0,98084.0,0.390032]
[1736104310321,0.10303465,98089.0,98086.0,0.367024]
[1736104310510,0.10303465,98089.0,98087.0,0.10398632]
[1736104310944,0.10303465,98089.0,98087.0,0.13398632]
[1736104311376,0.10403465,98089.0,98087.0,0.13398632]
[1736104311794,0.10403465,98089.0,98088.0,0.183508]
[1736104311975,0.10403465,98089.0,98088.0,0.28749432]
[1736104312130,0.10703465,98089.0,98088.0,0.28749432]
[1736104312541,0.10603465,98089.0,98088.0,0.28749432]
[1736104312882,0.10403465,98089.0,98088.0,0.28749432]
[1736104313307,0.10603465,98089.0,98088.0,0.28749432]
[1736104313761,0.10703465,98089.0,98088.0,0.28749432]
[1736104315558,0.10303465,98089.0,98088.0,0.28749432]
[1736104315946,0.10703465,98089.0,98088.0,0.28749432]
[1736104318332,0.10703465,98089.0,98088.0,0.28766512]
[1736104320087,0.10703465,98089.0,98088.0,0.29462512]
[1736104320472,0.10703465,98089.0,98088.0,0.28766512]
[1736104320672,0.18343465,98089.0,98088.0,0.0001708]
[1736104320871,0.28409679,98089.0,98088.0,0.0001708]
[1736104321072,0.46760279,98089.0,98088.0,0.0001708]
[1736104321323,0.47793472,98089.0,98088.0,0.0001708]
[1736104321529,0.46760279,98089.0,98088.0,0.0001708]
[1736104322027,0.46660279,98089.0,98088.0,0.0001708]
[1736104322203,0.46360279,98089.0,98088.0,0.0001708]
[1736104322401,0.46860279,98089.0,98088.0,0.0001708]
[1736104322876,0.46360279,98089.0,98088.0,0.0001708]
[1736104323048,0.46860279,98089.0,98088.0,0.0001708]
[1736104323676,0.46960279,98089.0,98088.0,0.0001708]
[1736104324847,0.46360279,98089.0,98088.0,0.0001708]
[1736104325060,0.46860279,98089.0,98088.0,0.0001708]
[1736104325757,0.47360279,98089.0,98088.0,0.0001708]
[1736104326015,0.47560279,98089.0,98088.0,0.0001708]
[1736104326404,0.47360279,98089.0,98088.0,0.0001708]
[1736104326794,0.47560279,98089.0,98088.0,0.0001708]
[1736104328910,0.29209679,98089.0,98088.0,0.0001708]
[1736104329065,0.80183679,98089.0,98088.0,0.0001708]
[1736104330047,0.69893679,98089.0,98088.0,0.0001708]
[1736104334398,0.68893679,98089.0,98088.0,0.0001708]
[1736104334595,0.68993679,98089.0,98088.0,0.0001708]
[1736104334833,0.69093679,98089.0,98088.0,0.0001708]
[1736104345518,0.64403679,98089.0,98088.0,0.0001708]
[1736104347828,0.56763679,98089.0,98088.0,0.0001708]
[1736104348009,0.56463679,98089.0,98088.0,0.0001708]
[1736104348589,0.56663679,98089.0,98088.0,0.0001708]
[1736104348796,0.56763679,98089.0,98088.0,0.0001708]
[1736104351361,0.56463679,98089.0,98088.0,0.0001708]
[1736104351567,0.56763679,98089.0,98088.0,0.0001708]
[1736104351774,0.56663679,98089.0,98088.0,0.0001708]
[1736104351987,0.56763679,98089.0,98088.0,0.0001708]
[1736104356352,0.64913679,98089.0,98088.0,0.0001708]
[1736104357616,0.64913679,98089.0,98088.0,0.0001308]
[1736104359547,0.56763679,98089.0,98088.0,0.0001308]
[1736104362295,0.51763679,98089.0,98088.0,0.0001308]
[1736104362498,0.56763679,98089.0,98088.0,0.0001308]
[1736104363664,0.51763679,98089.0,98088.0,0.0001308]
[1736104365420,0.56763679,98089.0,98088.0,0.0001308]
[1736104367594,0.56748257,98089.0,98088.0,0.0001308]
[1736104373512,0.56748257,98089.0,98088.0,0.0070108]
[1736104374681,0.56748257,98089.0,98088.0,0.0001308]
[1736104374894,0.56748257,98089.0,98088.0,0.0070108]
[1736104375475,0.51748257,98089.0,98088.0,0.11099712]
[1736104376875,0.51756797,98089.0,98088.0,0.11099712]
[1736104390839,0.51756797,98089.0,98088.0,0.13399712]
[1736104392288,0.51756797,98089.0,98088.0,0.18249712]
[1736104392511,0.5138254,98089.0,98088.0,0.18249712]
[1736104392717,0.5138254,98089.0,98088.0,0.11099712]
[1736104392923,0.5175889,98089.0,98088.0,0.11099712]
[1736104406394,0.5932889,98089.0,98088.0,0.11099712]
[1736104406599,0.5932889,98089.0,98088.0,0.10411712]